fUSD/lending_fUSD_20251130
["ID","MTS","AMOUNT","RATE_DAILY","PERIOD"]
[395139089,1764471044449,-500.0,0.00016821,2]
[395139090,1764471044458,-150.0,0.00016821,2]
[395139091,1764471044467,-500.0,0.00016821,2]
[395139092,1764471044477,-500.0,0.00016821,2]
[395139093,1764471044487,-803.0,0.00016821,2]
[395139094,1764471044496,-150.0,0.00016821,2]
[395139095,1764471044505,-500.0,0.00016821,2]
[395139096,1764471044515,-500.0,0.00016821,2]
[395139097,1764471044523,-500.0,0.00016821,2]
[395139098,1764471044532,-1520.19807694,0.00016821,2]
[395139099,1764471044542,-1815.95931,0.0001683,2]
[395139100,1764471044551,-150.0,0.00016832,2]
[395139101,1764471044561,-150.0,0.00016832,2]
[395139102,1764471044569,-985.43015278,0.00016833,2]
[395139103,1764471044578,-985.43015278,0.0001685,2]
[395139104,1764471044587,-200.0,0.00016863,2]
[395139105,1764471044596,-200.0,0.00016864,2]
[395139106,1764471044606,-200.0,0.00016864,2]
[395139107,1764471044615,-200.0,0.00016864,2]
[395139108,1764471044625,-200.0,0.00016864,2]
[395139109,1764471044634,-985.43015278,0.00016867,2]
[395139110,1764471044643,-150.0,0.00016873,2]
[395139111,1764471044652,-985.43015278,0.00016883,2]
[395139112,1764471044662,-150.0,0.00016892,2]
[395139113,1764471044671,-985.43015278,0.000169,2]
[395139114,1764471044685,-614.2514223,0.000169,2]
[395139115,1764471044694,-318.91176919,0.000169,2]
[395139116,1764471044703,-183.66617545,0.000169,2]
[395139117,1764471044716,-1323.05333443,0.000169,2]
[395139118,1764471044725,-14434.76205851,0.000169,2]
[395139119,1764471044735,-500.0,0.000169,2]
[395139120,1764471044744,-500.0,0.000169,2]
[395139121,1764471044754,-500.0,0.000169,2]
[395139122,1764471044763,-500.0,0.000169,2]
[395139123,1764471044781,-500.0,0.000169,2]
[395139124,1764471044793,-500.0,0.000169,2]
[395139125,1764471044802,-500.0,0.000169,2]
[395139126,1764471044812,-500.0,0.000169,2]
[395139127,1764471044822,-500.0,0.000169,2]
[395139128,1764471044831,-500.0,0.000169,2]
[395139129,1764471044840,-500.0,0.000169,2]
[395139130,1764471044850,-500.0,0.000169,2]
[395139131,1764471044859,-500.0,0.000169,2]
[395139132,1764471044869,-500.0,0.000169,2]
[395139133,1764471044878,-500.0,0.000169,2]
[395139134,1764471044888,-500.0,0.000169,2]
[395139135,1764471044898,-197.92719606,0.000169,2]
[395139136,1764471044907,-11729.0,0.000169,2]
[395139137,1764471044919,-217.15941515,0.00016951,2]
[395139138,1764471044928,-210.24253861,0.00016958,2]
[395139139,1764471044939,-150.0,0.00016958,2]
[395139140,1764471044949,-150.0,0.00016958,2]
[395139141,1764471044961,-179.75220737,0.00016958,2]
[395139142,1764471044971,-150.54642357,0.00016958,2]
[395139143,1764471044981,-200.0,0.00016958,2]
[395139144,1764471044991,-500.0,0.00016958,2]
[395139145,1764471045000,-207.87934931,0.00016958,2]
[395139146,1764471045010,-500.0,0.00016958,2]
[395139147,1764471045019,-500.0,0.00016958,2]
[395139148,1764471045029,-803.0,0.00016958,2]
[395139149,1764471045039,-150.0,0.00016958,2]
[395139150,1764471045049,-500.0,0.00016958,2]
[395139151,1764471045059,-500.0,0.00016958,2]
[395139152,1764471045069,-500.0,0.00016958,2]
[395139153,1764471045079,-1347.0,0.00016959,2]
[395139154,1764471045088,-500.38978168,0.00016973,2]
[395139155,1764471045098,-500.0,0.00016973,2]
[395139156,1764471045109,-176.66973248,0.00016973,2]
[395139157,1764471045119,-167.3210545,0.00016973,2]
[395139158,1764471045133,-500.0,0.00016973,2]
[395139159,1764471045143,-500.0,0.00016973,2]
[395139160,1764471045154,-500.0,0.00016973,2]
[395139161,1764471045163,-500.0,0.00016973,2]
[395139162,1764471045173,-500.0,0.00016973,2]
[395139163,1764471045184,-507.2295556,0.00016973,2]
[395139164,1764471045194,-366.95471126,0.00016973,2]
[395139165,1764471045204,-500.0,0.00016973,2]
[395139166,1764471045215,-502.42313954,0.00016973,2]
[395139167,1764471045226,-500.0,0.00016973,2]
[395139168,1764471045236,-162.090508,0.00016973,2]
[395139169,1764471045246,-500.0,0.00016973,2]
[395139170,1764471045258,-500.0,0.00016973,2]
[395139171,1764471045267,-500.0,0.00016973,2]
[395139172,1764471045278,-500.0,0.00016973,2]
[395139173,1764471045287,-500.49965341,0.00016973,2]
[395139174,1764471045298,-500.0,0.00016973,2]
[395139175,1764471045309,-500.0,0.00016973,2]
[395139176,1764471045319,-500.0,0.00016973,2]
[395139177,1764471045594,-500.0,0.00016973,2]
[395139178,1764471045604,-500.0,0.00016973,2]
[395139179,1764471045614,-187.03419553,0.00016973,2]
[395139180,1764471045624,-500.0,0.00016973,2]
[395139181,1764471045633,-500.0,0.00016973,2]
[395139182,1764471045643,-500.0,0.00016973,2]
[395139184,1764471045652,-215.92719524,0.00016973,2]
[395139186,1764471045661,-500.0,0.00016973,2]
[395139188,1764471045670,-500.0,0.00016973,2]
[395139190,1764471045684,-500.0,0.00016973,2]
[395139191,1764471045695,-172.99922432,0.00016973,2]
[395139192,1764471045706,-500.0,0.00016973,2]
[395139193,1764471045719,-500.0,0.00016973,2]
[395139194,1764471045730,-500.0,0.00016973,2]
[395139195,1764471045740,-500.0,0.00016973,2]
[395139196,1764471045749,-500.0,0.00016973,2]
[395139197,1764471045759,-281.71884417,0.00016973,2]
[395139198,1764471045769,-500.0,0.00016973,2]
[395139199,1764471045778,-502.43180365,0.00016983,2]
[395139200,1764471045794,-165.6418434,0.00016986,2]
[395139201,1764471045804,-204.30018079,0.00016986,2]
[395139202,1764471045813,-150.10346577,0.00016986,2]
[395139203,1764471045825,-168.80232589,0.00016986,2]
[395139204,1764471045835,-151.57196874,0.00016986,2]
[395139205,1764471045846,-239.89101121,0.00016986,2]
[395139206,1764471045857,-155.69497856,0.00016986,2]
[395139207,1764471045867,-152.10525801,0.00016986,2]
[395139208,1764471045876,-152.51466941,0.00016986,2]
[395139209,1764471045886,-244.26630786,0.00016986,2]
[395139210,1764471045895,-222.23133542,0.0001699,2]
[395139211,1764471045905,-522.79968162,0.00016993,2]
[395139212,1764471045915,-500.0,0.00016993,2]
[395139213,1764471045924,-519.32805224,0.00016993,2]
[395139214,1764471045934,-151.0,0.00016996,2]
[395139215,1764471045943,-151.0,0.00016997,2]
[395139216,1764471045953,-500.0,0.00016998,2]
[395139217,1764471045964,-500.0,0.00016998,2]
[395139218,1764471045973,-500.0,0.00016998,2]
[395139219,1764471045983,-731419.7928911,0.00016999,2]
[395139220,1764471045995,-296.87113101,0.00016999,2]
[395139221,1764471046004,-300.0,0.00016999,2]
[395139222,1764471046014,-300.0,0.00016999,2]
[395139223,1764471046023,-300.0,0.00016999,2]
[395139224,1764471046032,-500.0,0.00016999,2]
[395139225,1764471046041,-500.0,0.00016999,2]
[395139226,1764471046050,-500.0,0.00016999,2]
[395139227,1764471046059,-500.0,0.00016999,2]
[395139228,1764471046071,-500.0,0.00016999,2]
[395139229,1764471046080,-500.0,0.00016999,2]
[395139230,1764471046090,-500.0,0.00016999,2]
[395139231,1764471046100,-500.0,0.00016999,2]
[395139232,1764471046110,-498.79922411,0.00016999,2]
[395139233,1764471046119,-5176854.14301952,0.00017,2]
[395139234,1764471047256,-325.929999,0.00017,2]
[395139235,1764471047267,-10078.75992589,0.00017,2]
[395139236,1764471047281,-290.65933611,0.00017,2]
[395139237,1764471047293,-1884955.9979729,0.00017,2]
[395139238,1764471047304,-127333.50954399,0.00017,2]
[395139239,1764471047315,-547.42060492,0.00017,2]
[395139240,1764471047325,-25929.53790341,0.00017,2]
[395139241,1764471047343,-725.23715698,0.00017,2]
[395139242,1764471047354,-500.0,0.00017,2]
[395139243,1764471047365,-99855.33479922,0.00017,2]
[395139244,1764471047564,-585.85828064,0.00013772,2]
[395139245,1764471047573,-42.43033003,0.00016541,2]
[395139246,1764471047586,-2469.02239873,0.00016541,2]
[395139247,1764471047610,-15649.37459591,0.00016541,2]
[395139248,1764471047620,-312660.72858565,0.00017,2]
[395139249,1764471047632,-20951.78422372,0.00017,2]
[395139250,1764471047661,-330.540598,0.00017,2]
[395139267,1764471148024,159.4558846,0.00013673,2]
[395139268,1764471154131,471.92770847,0.00013771,2]
[395139269,1764471154436,207.74685974,0.00013771,2]
[395139270,1764471156981,500.0,0.00013771,2]
[395139271,1764471157608,500.0,0.00013771,2]
[395139276,1764471158235,500.0,0.00013771,2]
[395139277,1764471158888,500.0,0.00013771,2]
[395139282,1764471161161,500.0,0.00013771,2]
[395139283,1764471161216,500.0,0.00013771,2]
[395139284,1764471161270,500.0,0.00013771,2]
[395139285,1764471161323,500.0,0.00013771,2]
[395139286,1764471161385,253.30313915,0.00013771,2]
[395139287,1764471161467,500.0,0.00013771,2]
[395139290,1764471181509,300.0,0.00013771,2]
[395139292,1764471194763,500.0,0.00013771,2]
[395139293,1764471194809,500.0,0.00013771,2]
[395139294,1764471195238,500.0,0.00013771,2]
[395139295,1764471195279,500.0,0.00013771,2]
[395139296,1764471195320,500.0,0.00013771,2]
[395139297,1764471195399,453.30313915,0.00013771,2]
[395139298,1764471206201,235.2993,0.00013672,2]
[395139299,1764471224516,500.0,0.00013771,2]
[395139300,1764471224553,558.74548693,0.00013771,2]
[395139301,1764471224594,19.68436656,0.00013771,2]
[395139302,1764471224619,480.31563344,0.00013771,2]
[395139303,1764471224665,500.0,0.00013771,2]
[395139304,1764471224702,500.0,0.00013771,2]
[395139305,1764471224741,500.0,0.00013771,2]
[395139306,1764471224783,500.0,0.00013771,2]
[395139307,1764471224824,500.0,0.00013771,2]
[395139308,1764471224863,500.0,0.00013771,2]
[395139309,1764471224903,500.0,0.00013771,2]
[395139310,1764471224949,500.0,0.00013771,2]
[395139311,1764471224989,500.0,0.00013771,2]
[395139312,1764471225027,500.0,0.00013771,2]
[395139313,1764471225077,500.0,0.00013771,2]
[395139314,1764471225120,500.0,0.00013771,2]
[395139315,1764471225166,500.0,0.00013771,2]
[395139316,1764471225209,500.0,0.00013771,2]
[395139317,1764471225254,500.0,0.00013771,2]
[395139318,1764471225292,500.0,0.00013771,2]
[395139319,1764471225331,500.0,0.00013771,2]
[395139320,1764471225368,500.0,0.00013771,2]
[395139321,1764471225407,500.0,0.00013771,2]
[395139322,1764471225445,19.69436656,0.00013771,2]
[395139324,1764471244716,-268.27429584,0.00013672,2]
[395139325,1764471246160,-500.0,0.00013672,2]
[395139326,1764471247569,-528.35293065,0.00013672,2]
[395139327,1764471252811,-200.63795196,0.00013672,2]
[395139328,1764471255450,-415.26373283,0.00013672,2]
[395139329,1764471265271,-184.82968071,0.00013672,2]
[395139330,1764471268138,-324.43492454,0.00013672,2]
[395139331,1764471270871,-394.41304336,0.00013672,2]
[395139354,1764471350102,-205.94004011,0.00013672,2]
[395139355,1764471350128,-93.42200793,0.00013672,2]
[395139357,1764471362739,-300.0,0.00013671,2]
[395139358,1764471379867,-5239.6635671,0.00013672,2]
[395139359,1764471379910,-2341.80972229,0.00013672,2]
[395139360,1764471379935,-5316.39055542,0.00013672,2]
[395139361,1764471380033,-10000.01,0.00013672,2]
[395139362,1764471380164,-4528.65185979,0.00013672,2]
[395139363,1764471380191,-298.97978365,0.00013672,2]
[395139364,1764471398901,1498.0,0.00022,30]
[395139379,1764471462917,344.74671312,0.00013672,2]
[395139380,1764471462949,2155.25328688,0.00013672,2]
[395139381,1764471492066,-390.5721871,0.00013673,2]
[395139382,1764471588655,1000.0,0.00013672,2]
[395139383,1764471609419,-166.66,0.00013699,2]
[395139384,1764471609448,-413.0,0.000137,2]
[395139385,1764471617690,-300.0,0.00013735,2]
[395139386,1764471629655,260.38145806,0.00013673,2]
[395139388,1764471631702,2500.0,0.00013672,2]
[395139390,1764471665259,-261.60731072,0.00013672,2]
[395139391,1764471744918,9476.79537856,0.00013672,2]
[395139392,1764471744940,3599.00029526,0.00013672,2]
[395139393,1764471757354,1000.0,0.00013672,2]
[395139394,1764471762281,5401.00970474,0.00013672,2]
[395139395,1764471762303,6291.14756269,0.00013672,2]
[395139396,1764471769961,173.58763872,0.00013672,2]
[395139398,1764471800914,2500.0,0.00013672,2]
[395139399,1764471851102,200.0,0.00013587,2]
[395139400,1764471855721,-151.0,0.00013764,2]
[395139401,1764471855749,-151.0,0.00013764,2]
[395139402,1764471855778,-151.0,0.00013764,2]
[395139403,1764471855807,-160.82386666,0.00013764,2]
[395139404,1764471855834,-195.0,0.00013766,2]
[395139405,1764471855862,-257.80842911,0.00013766,2]
[395139406,1764471855889,-150.0,0.00013768,2]
[395139407,1764471855918,-540.69299149,0.00013769,2]
[395139408,1764471855946,-628.80011146,0.00013769,2]
[395139409,1764471855977,-500.0,0.00013769,2]
[395139410,1764471856008,-500.0,0.00013769,2]
[395139411,1764471856039,-500.0,0.00013769,2]
[395139412,1764471856070,-500.0,0.00013769,2]
[395139413,1764471856102,-500.0,0.00013769,2]
[395139414,1764471859368,-500.0,0.00013769,2]
[395139415,1764471859402,-500.0,0.00013769,2]
[395139416,1764471859438,-500.0,0.00013769,2]
[395139417,1764471859468,-500.0,0.00013769,2]
[395139418,1764471859497,-500.0,0.00013769,2]
[395139419,1764471859527,-500.0,0.00013769,2]
[395139420,1764471859557,-500.0,0.00013769,2]
[395139421,1764471859587,-500.0,0.00013769,2]
[395139422,1764471859620,-500.0,0.00013769,2]
[395139423,1764471859649,-500.0,0.00013769,2]
[395139424,1764471862130,-500.0,0.00013769,2]
[395139425,1764471862161,-500.0,0.00013769,2]
[395139426,1764471862192,-500.0,0.00013769,2]
[395139427,1764471862223,-500.0,0.00013769,2]
[395139428,1764471862252,-500.0,0.00013769,2]
[395139429,1764471862284,-500.0,0.00013769,2]
[395139430,1764471862315,-500.0,0.00013769,2]
[395139431,1764471862345,-500.0,0.00013769,2]
[395139432,1764471862376,-500.0,0.00013769,2]
[395139433,1764471862407,-500.0,0.00013769,2]
[395139434,1764471866166,-500.0,0.00013769,2]
[395139435,1764471866201,-500.0,0.00013769,2]
[395139436,1764471866236,-632.83740673,0.00013769,2]
[395139437,1764471866270,-500.0,0.00013769,2]
[395139438,1764471866306,-500.0,0.00013769,2]
[395139439,1764471866341,-500.0,0.00013769,2]
[395139440,1764471866378,-500.0,0.00013769,2]
[395139441,1764471866414,-500.0,0.00013769,2]
[395139442,1764471866448,-500.0,0.00013769,2]
[395139443,1764471866491,-234.33518654,0.00013769,2]
[395139444,1764471919437,-173.5876387,0.00013673,2]
[395139445,1764471927543,686.668,0.00013672,2]
[395139446,1764471947839,228.90639688,0.00013672,2]
[395139448,1764471970781,2500.0,0.00013672,2]
[395139471,1764472053165,173.5876387,0.00013673,2]
[395139474,1764472105221,6063.67268702,0.00013672,2]
[395139475,1764472105246,10000.01,0.00013672,2]
[395139476,1764472105285,10000.01,0.00013672,2]
[395139477,1764472105312,10000.01,0.00013672,2]
[395139478,1764472105339,10000.01,0.00013672,2]
[395139479,1764472105366,10000.01,0.00013672,2]
[395139480,1764472105393,10000.01,0.00013672,2]
[395139481,1764472105419,10000.01,0.00013672,2]
[395139506,1764472190337,-250.0,0.00013572,2]
[395139507,1764472191690,-278.92725152,0.00013572,2]
[395139508,1764472193168,-424.27429584,0.00013572,2]
[395139509,1764472195155,-250.0,0.00013572,2]
[395139510,1764472196740,-255.92714014,0.00013572,2]
[395139511,1764472197987,-5938.73725539,0.00013572,2]
[395139512,1764472198018,-4613.97896409,0.00013572,2]
[395139513,1764472198039,-772.05207182,0.00013572,2]
[395139517,1764472214547,1000.0,0.00013371,2]
[395139520,1764472230005,340.40917327,0.00013572,2]
[395139525,1764472231938,-300.0,0.00013668,2]
[395139526,1764472231948,-300.0,0.00013668,2]
[395139527,1764472231957,-1200.0,0.00013668,2]
[395139528,1764472231967,-300.0,0.00013668,2]
[395139529,1764472231976,-329.14870556,0.00013669,2]
[395139530,1764472231993,-999.0,0.00013669,2]
[395139531,1764472232005,-450.0,0.00013669,2]
[395139547,1764472238203,-10086.89153743,0.00013669,2]
[395139548,1764472238213,-330.34939593,0.00013671,2]
[395139549,1764472238223,-500.0,0.00013671,2]
[395139550,1764472238232,-194.38115483,0.00013671,2]
[395139551,1764472238242,-293.14591312,0.00013671,2]
[395139552,1764472238251,-500.0,0.00013671,2]
[395139553,1764472238261,-500.0,0.00013671,2]
[395139554,1764472238270,-150.0,0.00013671,2]
[395139555,1764472238281,-683936.25731298,0.00013672,2]
[395139556,1764472238291,-2500.0,0.00013672,2]
[395139557,1764472238301,-195.0,0.00013769,2]
[395139558,1764472238311,-250.0,0.00013769,2]
[395139559,1764472238320,-668.32446633,0.0001377,2]
[395139560,1764472238330,-403.8928038,0.0001377,2]
[395139561,1764472238340,-3668.263,0.0001377,2]
[395139562,1764472238350,-180.347,0.0001377,2]
[395139563,1764472238361,-500.0,0.0001377,2]
[395139564,1764472238371,-500.0,0.0001377,2]
[395139565,1764472238400,-500.0,0.0001377,2]
[395139566,1764472238411,-500.0,0.0001377,2]
[395139567,1764472238421,-500.0,0.0001377,2]
[395139568,1764472238431,-500.0,0.0001377,2]
[395139569,1764472238441,-500.0,0.0001377,2]
[395139570,1764472238451,-500.0,0.0001377,2]
[395139571,1764472238461,-500.0,0.0001377,2]
[395139572,1764472238470,-500.0,0.0001377,2]
[395139573,1764472238479,-500.0,0.0001377,2]
[395139574,1764472238489,-500.0,0.0001377,2]
[395139575,1764472238499,-500.0,0.0001377,2]
[395139576,1764472238508,-500.0,0.0001377,2]
[395139577,1764472238518,-500.0,0.0001377,2]
[395139579,1764472238528,-500.0,0.0001377,2]
[395139581,1764472238538,-500.0,0.0001377,2]
[395139582,1764472238547,-500.0,0.0001377,2]
[395139583,1764472238556,-500.0,0.0001377,2]
[395139584,1764472238566,-500.0,0.0001377,2]
[395139585,1764472238575,-502.38207279,0.0001377,2]
[395139586,1764472238584,-500.0,0.0001377,2]
[395139587,1764472238593,-239.64449271,0.0001377,2]
[395139588,1764472238604,-500.0,0.0001377,2]
[395139589,1764472238613,-500.0,0.0001377,2]
[395139590,1764472238622,-500.0,0.0001377,2]
[395139591,1764472238631,-500.0,0.0001377,2]
[395139592,1764472238641,-219.97289193,0.00013771,2]
[395139593,1764472238650,-151.00765985,0.00013771,2]
[395139594,1764472238659,-500.0,0.00013771,2]
[395139595,1764472238668,-500.0,0.00013771,2]
[395139596,1764472238677,-500.0,0.00013771,2]
[395139597,1764472238687,-17490.70721045,0.00013771,2]
[395139598,1764472238696,-500.0,0.00013771,2]
[395139599,1764472238707,-500.0,0.00013771,2]
[395139600,1764472238716,-500.0,0.00013771,2]
[395139601,1764472238725,-500.0,0.00013771,2]
[395139602,1764472238735,-500.0,0.00013771,2]
[395139603,1764472238744,-500.0,0.00013771,2]
[395139604,1764472238754,-500.0,0.00013771,2]
[395139605,1764472238763,-521.77695588,0.00013771,2]
[395139606,1764472238773,-500.0,0.00013771,2]
[395139607,1764472238783,-500.0,0.00013771,2]
[395139608,1764472238791,-500.0,0.00013771,2]
[395139609,1764472238801,-500.0,0.00013771,2]
[395139610,1764472238810,-500.0,0.00013771,2]
[395139611,1764472238820,-173.88347713,0.00013771,2]
[395139612,1764472238829,-241.3640238,0.00013771,2]
[395139613,1764472238838,-500.0,0.00013771,2]
[395139614,1764472238847,-500.0,0.00013771,2]
[395139615,1764472238857,-500.0,0.00013771,2]
[395139616,1764472238867,-500.0,0.00013771,2]
[395139617,1764472238876,-648.97949028,0.00013771,2]
[395139618,1764472238885,-600.0,0.00013772,2]
[395139619,1764472238894,-33399.3792,0.00013773,2]
[395139620,1764472238903,-1000.0,0.00013773,2]
[395139621,1764472238914,-8264.88,0.00013831,2]
[395139622,1764472238924,-500.0,0.00013872,2]
[395139623,1764472238933,-500.0,0.00013872,2]
[395139624,1764472238942,-512.38673853,0.00013872,2]
[395139625,1764472238951,-510.07916645,0.00013872,2]
[395139626,1764472238961,-500.0,0.00013872,2]
[395139627,1764472238970,-500.0,0.00013872,2]
[395139628,1764472238980,-183.05840034,0.00013872,2]
[395139629,1764472238990,-500.0,0.00013872,2]
[395139630,1764472238999,-500.0,0.00013872,2]
[395139631,1764472239009,-500.0,0.00013872,2]
[395139632,1764472239018,-312.82118125,0.00013872,2]
[395139633,1764472239027,-545.90394043,0.00013872,2]
[395139634,1764472239036,-500.0,0.00013872,2]
[395139635,1764472239045,-500.0,0.00013872,2]
[395139636,1764472239055,-500.0,0.00013872,2]
[395139637,1764472239063,-166.66,0.00013891,2]
[395139638,1764472239073,-12783.89697871,0.00013942,2]
[395139639,1764472239083,-11865.04024298,0.00014028,2]
[395139640,1764472239092,-3511.55,0.00014031,2]
[395139641,1764472239101,-150.99,0.00014031,2]
[395139642,1764472239111,-9999.99,0.00014031,2]
[395139643,1764472239121,-999.99,0.00014031,2]
[395139644,1764472239130,-9999.99,0.00014031,2]
[395139645,1764472239139,-299.99,0.00014031,2]
[395139646,1764472239148,-150.99,0.00014031,2]
[395139647,1764472239157,-166.67,0.00014032,2]
[395139648,1764472239166,-600.0,0.00014046,2]
[395139649,1764472239176,-166.66,0.00014083,2]
[395139650,1764472239185,-19643.88,0.00014176,2]
[395139651,1764472239194,-166.66,0.00014275,2]
[395139652,1764472239204,-12783.89697871,0.00014312,2]
[395139653,1764472239213,-1344.0,0.00014314,2]
[395139654,1764472239222,-600.0,0.0001432,2]
[395139655,1764472239232,-11865.04024298,0.00014387,2]
[395139656,1764472239241,-340.40917327,0.00014413,2]
[395139657,1764472239250,-166.66,0.00014467,2]
[395139658,1764472239259,-500.0,0.00014467,2]
[395139659,1764472239268,-177.17777842,0.00014483,2]
[395139660,1764472239281,-151.0,0.00014521,2]
[395139661,1764472239291,-558.23,0.00014594,2]
[395139662,1764472239299,-166.66,0.00014659,2]
[395139663,1764472239309,-12783.89697871,0.00014681,2]
[395139664,1764472239318,-11865.04024298,0.00014746,2]
[395139665,1764472239329,-255.0,0.00014792,2]
[395139666,1764472239339,-225.29829185,0.000149,2]
[395139667,1764472239348,-420.0,0.00014979,2]
[395139668,1764472239361,-300.0,0.00015035,2]
[395139669,1764472239370,-195.0,0.00015035,2]
[395139670,1764472239379,-288.70542759,0.00015035,2]
[395139671,1764472239389,-1680.0,0.00015035,2]
[395139672,1764472239398,-1000.0,0.00015042,2]
[395139673,1764472239408,-12783.89697871,0.00015051,2]
[395139674,1764472239418,-151.0,0.00015069,2]
[395139675,1764472239427,-11865.04024298,0.00015105,2]
[395139676,1764472239436,-195.0,0.00015146,2]
[395139677,1764472239445,-250.0,0.00015146,2]
[395139678,1764472239454,-300.0,0.00015146,2]
[395139679,1764472239463,-150.39058857,0.00015146,2]
[395139680,1764472239473,-195.0,0.00015146,2]
[395139681,1764472239482,-195.0,0.00015146,2]
[395139682,1764472239491,-509.39630906,0.00015149,2]
[395139683,1764472239500,-500.0,0.00015149,2]
[395139684,1764472239509,-500.0,0.00015149,2]
[395139685,1764472239519,-500.0,0.00015149,2]
[395139686,1764472239529,-509.0831174,0.00015149,2]
[395139687,1764472239537,-500.0,0.00015162,2]
[395139688,1764472239547,-166.67,0.0001519,2]
[395139689,1764472239556,-150.0,0.00015288,2]
[395139690,1764472239564,-150.0,0.00015288,2]
[395139691,1764472239573,-150.0,0.00015288,2]
[395139692,1764472239582,-150.0,0.00015288,2]
[395139693,1764472239591,-150.0,0.00015288,2]
[395139694,1764472239599,-150.0,0.00015288,2]
[395139695,1764472239608,-150.0,0.00015288,2]
[395139696,1764472239617,-150.32345624,0.00015288,2]
[395139697,1764472239627,-150.55049466,0.00015288,2]
[395139698,1764472239636,-150.0,0.00015288,2]
[395139699,1764472239645,-150.0,0.00015288,2]
[395139700,1764472239655,-150.0,0.00015288,2]
[395139701,1764472239665,-150.0,0.00015382,2]
[395139702,1764472239674,-150.0,0.00015401,2]
[395139703,1764472239683,-12783.89697871,0.00015421,2]
[395139704,1764472239692,-1500.0,0.00015428,2]
[395139705,1764472239701,-150.0,0.00015442,2]
[395139706,1764472239710,-150.0,0.00015442,2]
[395139707,1764472239719,-150.0,0.00015458,2]
[395139708,1764472239729,-11865.04024298,0.00015464,2]
[395139709,1764472239738,-150.0,0.00015476,2]
[395139710,1764472239747,-150.0,0.000155,2]
[395139711,1764472239756,-150.0,0.00015514,2]
[395139712,1764472239765,-150.0,0.0001553,2]
[395139713,1764472239774,-150.0,0.00015571,2]
[395139714,1764472239783,-150.0,0.00015597,2]
[395139715,1764472239792,-150.0,0.00015597,2]
[395139716,1764472239801,-151.0,0.00015617,2]
[395139717,1764472239811,-150.0,0.00015627,2]
[395139718,1764472239820,-150.0,0.00015627,2]
[395139719,1764472239829,-150.0,0.00015665,2]
[395139720,1764472239838,-150.0,0.00015712,2]
[395139721,1764472239847,-985.43015279,0.00015724,2]
[395139722,1764472239857,-150.0,0.00015741,2]
[395139723,1764472239866,-150.0,0.00015751,2]
[395139724,1764472239875,-150.0,0.00015751,2]
[395139725,1764472239884,-150.0,0.0001576,2]
[395139726,1764472239893,-150.0,0.00015773,2]
[395139727,1764472239903,-12783.89697871,0.00015791,2]
[395139728,1764472239912,-150.0,0.00015797,2]
[395139729,1764472239921,-11865.04024298,0.00015823,2]
[395139730,1764472239930,-11736.0,0.00015823,2]
[395139731,1764472239940,-150.0,0.00015854,2]
[395139732,1764472239949,-150.0,0.00015854,2]
[395139733,1764472239958,-150.0,0.00015854,2]
[395139734,1764472239968,-150.0,0.00015854,2]
[395139735,1764472239976,-882.59078102,0.000159,2]